fUSD/lending_fUSD_20250620
["ID","MTS","AMOUNT","RATE_DAILY","PERIOD"]
[366710001,1750415618778,-1480.37,0.00028757,4]
[366710002,1750415618788,-1643.1,0.00028757,4]
[366710003,1750415618798,-565.51,0.00028757,4]
[366710004,1750415618807,-492.45,0.00028757,4]
[366710005,1750415618817,-2032.33,0.00028757,4]
[366710006,1750415618827,-880.4,0.00028757,4]
[366710007,1750415618837,-490.0,0.00028757,4]
[366710008,1750415618847,-1088.85,0.00028757,4]
[366710009,1750415618857,-848.08,0.00028757,4]
[366710010,1750415618867,-912.78,0.00028757,4]
[366710011,1750415618877,-1634.09,0.00028757,4]
[366710012,1750415618887,-1838.84,0.00028757,4]
[366710013,1750415618897,-895.29,0.00028757,4]
[366710014,1750415618907,-818.8,0.00028757,4]
[366710015,1750415618918,-669.38,0.00028757,4]
[366710016,1750415618928,-490.0,0.00028757,4]
[366710017,1750415618938,-1627.01,0.00028757,4]
[366710018,1750415618949,-490.0,0.00028757,4]
[366710019,1750415618959,-490.0,0.00028757,4]
[366710020,1750415618970,-490.0,0.00028757,4]
[366710021,1750415618980,-1078.58,0.00028757,4]
[366710022,1750415618990,-994.67,0.00028757,4]
[366710023,1750415619000,-771.65,0.00028757,4]
[366710024,1750415619011,-490.0,0.00028757,4]
[366710025,1750415619021,-694.41,0.00028757,4]
[366710026,1750415619031,-490.0,0.00028757,4]
[366710027,1750415619041,-679.99,0.00028757,4]
[366710028,1750415619050,-2362.55,0.00028757,4]
[366710029,1750415619060,-490.0,0.00028757,4]
[366710030,1750415619070,-437.08839846,0.00028757,4]
[366710031,1750415619080,-490.0,0.00028757,4]
[366710032,1750415619090,-592.8,0.00028757,4]
[366710033,1750415619100,-490.0,0.00028757,4]
[366710034,1750415619111,-542.79,0.00028757,4]
[366710035,1750415619121,-1385.22,0.00028757,4]
[366710036,1750415619130,-1591.3,0.00028757,4]
[366710037,1750415619142,-490.0,0.00028757,4]
[366710038,1750415619152,-1073.69,0.00028757,4]
[366710039,1750415619162,-307.64964647,0.00028757,4]
[366710040,1750415619172,-616.36,0.00028757,4]
[366710041,1750415619182,-490.0,0.00028757,4]
[366710042,1750415619192,-490.0,0.00028757,4]
[366710043,1750415619202,-490.0,0.00028757,4]
[366710044,1750415619214,-583.29,0.00028757,4]
[366710045,1750415619225,-1175.68,0.00028757,4]
[366710046,1750415619235,-1312.24,0.00028757,4]
[366710047,1750415619245,-1363.77,0.00028757,4]
[366710048,1750415619255,-617.00431522,0.00028757,4]
[366710049,1750415619265,-770.8,0.00028757,4]
[366710050,1750415619275,-997.01,0.00028757,4]
[366710051,1750415619286,-989.39,0.00028757,4]
[366710052,1750415619296,-567.86,0.00028757,4]
[366710053,1750415619308,-1096.04,0.00028757,4]
[366710054,1750415619318,-1520.45,0.00028757,4]
[366710055,1750415619328,-805.39,0.00028757,4]
[366710056,1750415619338,-490.0,0.00028757,4]
[366710057,1750415619350,-1428.58,0.00028757,4]
[366710058,1750415619360,-596.59,0.00028757,4]
[366710059,1750415619370,-5382.53,0.00028757,4]
[366710060,1750415619380,-490.0,0.00028757,4]
[366710061,1750415619390,-703.96,0.00028757,4]
[366710062,1750415619400,-1669.54,0.00028757,4]
[366710063,1750415619409,-1601.56,0.00028757,4]
[366710064,1750415619419,-2721.61,0.00028757,4]
[366710065,1750415619431,-490.0,0.00028757,4]
[366710066,1750415619440,-741.54,0.00028757,4]
[366710067,1750415619451,-669.76,0.00028757,4]
[366710068,1750415619462,-1225.01,0.00028757,4]
[366710069,1750415619472,-2422.36,0.00028757,4]
[366710070,1750415619481,-1005.68,0.00028757,4]
[366710071,1750415619492,-490.0,0.00028757,4]
[366710072,1750415619501,-2138.59,0.00028757,4]
[366710073,1750415619512,-998.16,0.00028757,4]
[366710074,1750415619522,-4396.87,0.00028757,4]
[366710075,1750415619531,-933.76,0.00028757,4]
[366710076,1750415619542,-897.22,0.00028757,4]
[366710077,1750415619552,-1489.74,0.00028757,4]
[366710078,1750415619562,-2632.99,0.00028757,4]
[366710079,1750415619574,-490.0,0.00028757,4]
[366710080,1750415619584,-2115.45,0.00028757,4]
[366710081,1750415619594,-969.59,0.00028757,4]
[366710082,1750415619605,-1788.12,0.00028757,4]
[366710083,1750415619614,-587.84,0.00028757,4]
[366710084,1750415619625,-497.15211666,0.00028757,4]
[366710085,1750415619635,-747.47,0.00028757,4]
[366710086,1750415619644,-629.05,0.00028757,4]
[366710087,1750415619655,-1158.39,0.00028757,4]
[366710088,1750415619665,-4900.18,0.00028757,4]
[366710089,1750415619676,-490.0,0.00028757,4]
[366710090,1750415619686,-1552.28,0.00028757,4]
[366710091,1750415619697,-540.28,0.00028757,4]
[366710092,1750415619707,-1986.49,0.00028757,4]
[366710093,1750415619718,-2142.56,0.00028757,4]
[366710094,1750415619729,-675.46,0.00028757,4]
[366710095,1750415619739,-2131.24,0.00028757,4]
[366710096,1750415619749,-1335.47,0.00028757,4]
[366710097,1750415619759,-894.67,0.00028757,4]
[366710098,1750415619769,-3901.98,0.00028757,4]
[366710099,1750415619779,-694.78,0.00028757,4]
[366710100,1750415619790,-748.02,0.00028757,4]
[366710101,1750415619800,-2210.45,0.00028757,4]
[366710102,1750415619810,-1823.65,0.00028757,4]
[366710103,1750415619821,-1839.21,0.00028757,4]
[366710104,1750415619832,-951.3,0.00028757,4]
[366710105,1750415619842,-490.0,0.00028757,4]
[366710106,1750415619852,-828.87,0.00028757,4]
[366710107,1750415619862,-828.66,0.00028757,4]
[366710108,1750415619874,-2336.71,0.00028757,4]
[366710109,1750415619884,-1193.56,0.00028757,4]
[366710110,1750415619895,-1201.91,0.00028757,4]
[366710111,1750415619905,-1533.32,0.00028757,4]
[366710112,1750415619916,-2402.13,0.00028757,4]
[366710113,1750415619926,-2054.14,0.00028757,4]
[366710114,1750415619936,-490.0,0.00028767,4]
[366710115,1750415619946,-490.0,0.00028767,4]
[366710116,1750415619956,-495.62985416,0.00028767,4]
[366710117,1750415619967,-490.0,0.00028767,4]
[366710118,1750415619977,-490.0,0.00028767,4]
[366710119,1750415619987,-490.0,0.00028767,4]
[366710120,1750415619997,-490.0,0.00028767,4]
[366710121,1750415620008,-490.0,0.00028767,4]
[366710122,1750415620019,-536.23,0.00028767,4]
[366710123,1750415620029,-490.0,0.00028767,4]
[366710124,1750415620039,-686.65,0.00028767,4]
[366710125,1750415620049,-490.0,0.00028767,4]
[366710126,1750415620060,-897.84,0.00028767,4]
[366710127,1750415620070,-793.14,0.00028767,4]
[366710128,1750415620081,-656.19,0.00028767,4]
[366710129,1750415620091,-490.0,0.00028767,4]
[366710130,1750415620102,-624.06,0.00028767,4]
[366710131,1750415620113,-490.0,0.00028767,4]
[366710132,1750415620123,-568.83,0.00028767,4]
[366710133,1750415620133,-402.69,0.00028767,4]
[366710134,1750415620143,-234.36018115,0.00028767,4]
[366710135,1750415620153,-697.89,0.00028767,4]
[366710136,1750415620164,-490.0,0.00028767,4]
[366710137,1750415620174,-490.0,0.00028767,4]
[366710138,1750415620184,-724.36,0.00028767,4]
[366710139,1750415620193,-490.0,0.00028767,4]
[366710140,1750415620203,-490.0,0.00028767,4]
[366710141,1750415620212,-1029.22,0.00028767,4]
[366710142,1750415620222,-490.0,0.00028767,4]
[366710143,1750415620232,-490.0,0.00028767,4]
[366710144,1750415620242,-490.0,0.00028767,4]
[366710145,1750415620252,-490.0,0.00028767,4]
[366710146,1750415620262,-490.0,0.00028767,4]
[366710147,1750415620272,-490.0,0.00028767,4]
[366710148,1750415620282,-490.0,0.00028767,4]
[366710149,1750415620292,-490.0,0.00028767,4]
[366710150,1750415620302,-817.57,0.00028767,4]
[366710151,1750415620312,-490.0,0.00028767,4]
[366710152,1750415620321,-490.0,0.00028767,4]
[366710153,1750415620331,-490.0,0.00028767,4]
[366710154,1750415620341,-860.55,0.00028767,4]
[366710155,1750415620351,-490.0,0.00028767,4]
[366710156,1750415620361,-490.0,0.00028767,4]
[366710157,1750415620370,-490.0,0.00028767,4]
[366710158,1750415620380,-490.0,0.00028767,4]
[366710159,1750415620391,-490.0,0.00028767,4]
[366710160,1750415620401,-490.0,0.00028767,4]
[366710161,1750415620410,-490.0,0.00028767,4]
[366710162,1750415620421,-490.0,0.00028767,4]
[366710163,1750415620431,-490.0,0.00028767,4]
[366710164,1750415620441,-490.0,0.00028767,4]
[366710165,1750415620450,-650.85,0.00028767,4]
[366710166,1750415620461,-490.0,0.00028767,4]
[366710167,1750415620471,-490.0,0.00028767,4]
[366710168,1750415620481,-666.55,0.00028767,4]
[366710169,1750415620491,-490.0,0.00028767,4]
[366710170,1750415620501,-490.0,0.00028767,4]
[366710171,1750415620511,-490.0,0.00028767,4]
[366710172,1750415620521,-490.0,0.00028767,4]
[366710173,1750415620530,-490.0,0.00028767,4]
[366710174,1750415620541,-639.21917306,0.00028767,4]
[366710175,1750415620551,-490.0,0.00028767,4]
[366710176,1750415620560,-497.02,0.00028767,4]
[366710177,1750415620570,-490.0,0.00028767,4]
[366710178,1750415620581,-490.0,0.00028767,4]
[366710179,1750415620590,-561.45,0.00028767,4]
[366710180,1750415620600,-490.0,0.00028767,4]
[366710181,1750415620610,-490.0,0.00028767,4]
[366710182,1750415620620,-490.0,0.00028767,4]
[366710183,1750415620629,-490.0,0.00028767,4]
[366710184,1750415620639,-673.68,0.00028767,4]
[366710185,1750415620649,-490.0,0.00028767,4]
[366710186,1750415620659,-490.0,0.00028767,4]
[366710187,1750415620669,-798.5,0.00028767,4]
[366710188,1750415620679,-490.0,0.00028767,4]
[366710189,1750415620689,-490.0,0.00028767,4]
[366710190,1750415620699,-490.0,0.00028767,4]
[366710191,1750415620709,-490.0,0.00028767,4]
[366710192,1750415620719,-814.97,0.00028767,4]
[366710193,1750415620729,-490.0,0.00028767,4]
[366710194,1750415620739,-2237.34,0.00028767,4]
[366710195,1750415620750,-490.0,0.00028767,4]
[366710196,1750415620761,-997.34,0.00028767,4]
[366710197,1750415620770,-792.52,0.00028767,4]
[366710198,1750415620780,-490.0,0.00028767,4]
[366710199,1750415620790,-490.0,0.00028767,4]
[366710200,1750415620800,-490.0,0.00028767,4]
[366710201,1750415620810,-749.65,0.00028767,4]
[366710202,1750415620820,-490.0,0.00028767,4]
[366710203,1750415620830,-490.0,0.00028767,4]
[366710204,1750415620840,-490.0,0.00028767,4]
[366710205,1750415620850,-870.19,0.00028767,4]
[366710206,1750415620861,-661.75,0.00028767,4]
[366710207,1750415620871,-508.02,0.00028767,4]
[366710208,1750415620881,-490.0,0.00028767,4]
[366710209,1750415620890,-490.0,0.00028767,4]
[366710210,1750415620900,-1294.95,0.00028767,4]
[366710211,1750415620910,-490.0,0.00028767,4]
[366710212,1750415620920,-490.0,0.00028767,4]
[366710213,1750415620930,-490.0,0.00028767,4]
[366710214,1750415620940,-860.83,0.00028767,4]
[366710215,1750415620950,-686.43,0.00028767,4]
[366710216,1750415620961,-1554.68,0.00028767,4]
[366710217,1750415620971,-490.0,0.00028767,4]
[366710218,1750415620981,-490.0,0.00028767,4]
[366710219,1750415620991,-490.0,0.00028767,4]
[366710220,1750415621002,-490.0,0.00028767,4]
[366710221,1750415621011,-620.11,0.00028767,4]
[366710222,1750415621021,-490.0,0.00028767,4]
[366710223,1750415621031,-591.54,0.00028767,4]
[366710224,1750415621041,-1692.44,0.00028767,4]
[366710225,1750415621051,-757.27,0.00028767,4]
[366710226,1750415621060,-490.0,0.00028767,4]
[366710227,1750415621070,-490.0,0.00028767,4]
[366710228,1750415621081,-1478.21,0.00028767,4]
[366710229,1750415621091,-490.0,0.00028767,4]
[366710230,1750415621102,-490.0,0.00028767,4]
[366710231,1750415621112,-1664.77,0.00028767,4]
[366710232,1750415621122,-513.53,0.00028767,4]
[366710233,1750415621132,-1643.07,0.00028767,4]
[366710234,1750415621142,-2421.62,0.00028767,4]
[366710235,1750415621152,-490.0,0.00028767,4]
[366710236,1750415621162,-1002.75,0.00028767,4]
[366710237,1750415621172,-1171.85,0.00028767,4]
[366710238,1750415621182,-490.0,0.00028767,4]
[366710239,1750415621192,-490.0,0.00028767,4]
[366710240,1750415621200,-597.0045126,0.00028767,4]
[366710241,1750415621210,-490.0,0.00028767,4]
[366710242,1750415621222,-490.0,0.00028767,4]
[366710243,1750415621232,-513.94,0.00028767,4]
[366710244,1750415621243,-490.0,0.00028767,4]
[366710245,1750415621253,-1052.23,0.00028767,4]
[366710246,1750415621264,-1203.58,0.00028767,4]
[366710247,1750415621275,-1052.12,0.00028767,4]
[366710248,1750415621285,-490.0,0.00028767,4]
[366710249,1750415621295,-1116.54,0.00028767,4]
[366710250,1750415621306,-490.0,0.00028767,4]
[366710251,1750415621316,-593.05,0.00028767,4]
[366710252,1750415621327,-490.0,0.00028767,4]
[366710253,1750415621337,-713.86,0.00028767,4]
[366710254,1750415621348,-576.72,0.00028767,4]
[366710255,1750415621358,-1207.78,0.00028767,4]
[366710256,1750415621369,-490.0,0.00028767,4]
[366710257,1750415621380,-490.0,0.00028767,4]
[366710258,1750415621390,-885.97,0.00028767,4]
[366710259,1750415621401,-1286.94,0.00028767,4]
[366710260,1750415621410,-774.59,0.00028767,4]
[366710261,1750415621421,-663.64,0.00028767,4]
[366710262,1750415621431,-689.38,0.00028767,4]
[366710263,1750415621441,-556.07,0.00028767,4]
[366710264,1750415621451,-490.0,0.00028767,4]
[366710265,1750415621461,-490.0,0.00028767,4]
[366710266,1750415621471,-929.62,0.00028767,4]
[366710267,1750415621736,-852.86,0.00028767,4]
[366710268,1750415621771,-540.11,0.00028767,4]
[366710269,1750415621781,-490.0,0.00028767,4]
[366710270,1750415621791,-549.5,0.00028767,4]
[366710271,1750415621801,-490.0,0.00028767,4]
[366710272,1750415621812,-719.33,0.00028767,4]
[366710273,1750415621822,-490.0,0.00028767,4]
[366710274,1750415621832,-1178.9,0.00028767,4]
[366710275,1750415621842,-992.43,0.00028767,4]
[366710276,1750415621852,-490.0,0.00028767,4]
[366710277,1750415621862,-2120.13,0.00028767,4]
[366710278,1750415621872,-490.0,0.00028767,4]
[366710279,1750415621883,-490.0,0.00028767,4]
[366710280,1750415621893,-797.21,0.00028767,4]
[366710281,1750415621903,-2831.45,0.00028767,4]
[366710282,1750415621914,-490.0,0.00028767,4]
[366710283,1750415621925,-1657.46,0.00028767,4]
[366710284,1750415621935,-1176.63,0.00028767,4]
[366710285,1750415621946,-835.13,0.00028767,4]
[366710286,1750415621956,-640.77,0.00028767,4]
[366710287,1750415621967,-955.18,0.00028767,4]
[366710288,1750415621977,-759.69,0.00028767,4]
[366710289,1750415621987,-495.19,0.00028767,4]
[366710290,1750415621998,-1620.75,0.00028767,4]
[366710291,1750415622009,-2608.35,0.00028767,4]
[366710292,1750415622020,-1487.07,0.00028767,4]
[366710293,1750415622030,-490.0,0.00028767,4]
[366710294,1750415622041,-620.7,0.00028767,4]
[366710295,1750415622050,-2196.02,0.00028767,4]
[366710296,1750415622061,-2048.55,0.00028767,4]
[366710297,1750415622072,-490.0,0.00028767,4]
[366710298,1750415622082,-1452.89,0.00028767,4]
[366710299,1750415622093,-676.1,0.00028767,4]
[366710300,1750415622103,-490.0,0.00028767,4]
[366710301,1750415622114,-3078.01,0.00028767,4]
[366710302,1750415622125,-729.0,0.00028767,4]
[366710303,1750415622135,-646.89,0.00028767,4]
[366710304,1750415622146,-490.0,0.00028767,4]
[366710305,1750415622156,-692.86,0.00028767,4]
[366710306,1750415622167,-1111.1,0.00028767,4]
[366710307,1750415622178,-726.03,0.00028767,4]
[366710308,1750415622189,-896.01,0.00028767,4]
[366710309,1750415622199,-522.54,0.00028767,4]
[366710310,1750415622210,-817.65,0.00028767,4]
[366710311,1750415622221,-1212.05,0.00028767,4]
[366710312,1750415622232,-490.0,0.00028767,4]
[366710313,1750415622243,-481.36339738,0.00028767,4]
[366710314,1750415622254,-1510.44,0.00028767,4]
[366710315,1750415622264,-355.09698721,0.00028767,4]
[366710316,1750415622275,-563.12,0.00028767,4]
[366710317,1750415622285,-17404.6,0.00028767,4]
[366710318,1750415622295,-490.0,0.00028767,4]
[366710319,1750415622306,-516.42,0.00028767,4]
[366710320,1750415622317,-1966.77,0.00028767,4]
[366710321,1750415622328,-499.64,0.00028767,4]
[366710322,1750415622339,-682.61,0.00028767,4]
[366710323,1750415622349,-496.54,0.00028767,4]
[366710324,1750415622360,-1292.76,0.00028767,4]
[366710325,1750415622370,-532.96,0.00028767,4]
[366710326,1750415622380,-490.0,0.00028767,4]
[366710327,1750415622390,-485.61392111,0.00028767,4]
[366710328,1750415622400,-3089.65,0.00028767,4]
[366710329,1750415622410,-490.0,0.00028767,4]
[366710330,1750415622420,-490.0,0.00028767,4]
[366710331,1750415622430,-1110.49,0.00028767,4]
[366710332,1750415622440,-875.85,0.00028767,4]
[366710333,1750415622451,-808.72,0.00028767,4]
[366710334,1750415622462,-490.0,0.00028767,4]
[366710335,1750415622473,-482.27978949,0.00028767,4]
[366710336,1750415622483,-548.1,0.00028767,4]
[366710337,1750415622493,-1116.64,0.00028767,4]
[366710338,1750415622503,-741.55,0.00028767,4]
[366710339,1750415622514,-490.0,0.00028767,4]
[366710340,1750415622525,-490.0,0.00028767,4]
[366710341,1750415622535,-900.32,0.00028767,4]
[366710342,1750415622546,-490.0,0.00028767,4]
[366710343,1750415622556,-3388.66,0.00028767,4]
[366710344,1750415622566,-223.77016727,0.00028767,4]
[366710345,1750415622576,-492.38872563,0.00028767,4]
[366710346,1750415622586,-1386.85,0.00028767,4]
[366710347,1750415622596,-2512.9,0.00028767,4]
[366710348,1750415622605,-490.0,0.00028767,4]
[366710349,1750415622615,-613.06,0.00028767,4]
[366710350,1750415622625,-7527.62,0.00028767,4]
[366710351,1750415622634,-7882.79,0.00028767,4]
[366710352,1750415622645,-1533.1,0.00028767,4]
[366710353,1750415622655,-741.74,0.00028767,4]
[366710354,1750415622665,-557.61,0.00028767,4]
[366710355,1750415622675,-2444.05,0.00028767,4]
[366710356,1750415622686,-1074.56,0.00028767,4]
[366710357,1750415622696,-567.96925677,0.00028767,4]
[366710358,1750415622706,-716.85,0.00028767,4]
[366710359,1750415622716,-3776.02,0.00028767,4]
[366710360,1750415622726,-600.0,0.00028767,120]
[366710361,1750415622736,-490.0,0.00028767,4]
[366710362,1750415622746,-759.29,0.00028767,4]
[366710363,1750415622756,-508.46,0.00028767,4]
[366710364,1750415622766,-490.0,0.00028767,4]
[366710365,1750415622776,-5317.42,0.00028767,4]
[366710366,1750415622786,-492.62730618,0.00028767,4]
[366710367,1750415622797,-490.0,0.00028767,4]
[366710368,1750415622808,-1702.18,0.00028767,4]
[366710369,1750415622819,-1502.12,0.00028767,4]
[366710370,1750415622830,-490.0,0.00028767,4]
[366710371,1750415622841,-9880.35,0.00028767,4]
[366710372,1750415622851,-670.44,0.00028767,4]
[366710373,1750415622860,-2012.16,0.00028767,4]
[366710374,1750415622871,-1936.5,0.00028767,4]
[366710375,1750415622881,-6404.69,0.00028767,4]
[366710376,1750415622891,-490.0,0.00028767,4]
[366710377,1750415622902,-490.0,0.00028767,4]
[366710378,1750415622912,-490.0,0.00028767,4]
[366710379,1750415622922,-2380.6,0.00028767,4]
[366710380,1750415622933,-1141.27,0.00028767,4]
[366710381,1750415622943,-510.99,0.00028767,4]
[366710382,1750415622953,-691.59,0.00028767,4]
[366710383,1750415622963,-490.0,0.00028767,4]
[366710384,1750415622974,-490.0,0.00028767,4]
[366710385,1750415622984,-490.0,0.00028767,4]
[366710386,1750415622995,-2450.17,0.00028767,4]
[366710387,1750415623005,-1844.2,0.00028767,4]
[366710388,1750415623015,-622.58,0.00028767,4]
[366710389,1750415623025,-1419.42,0.00028767,4]
[366710390,1750415623036,-17540.73,0.00028767,4]
[366710391,1750415623045,-1227.01,0.00028767,4]
[366710392,1750415623057,-490.0,0.00028767,4]
[366710393,1750415623067,-490.0,0.00028767,4]
[366710394,1750415623077,-490.0,0.00028767,4]
[366710395,1750415623087,-490.0,0.00028767,4]
[366710396,1750415623098,-490.0,0.00028767,4]
[366710397,1750415623108,-5948.54,0.00028767,4]
[366710398,1750415623119,-957.68,0.00028767,4]
[366710399,1750415623130,-5372.22,0.00028767,4]
[366710400,1750415623140,-1499.27,0.00028767,4]
[366710401,1750415623151,-1594.4,0.00028767,4]
[366710402,1750415623162,-490.0,0.00028767,4]
[366710403,1750415623173,-1525.88,0.00028767,4]
[366710404,1750415623183,-18649.49,0.00028767,4]
[366710405,1750415623193,-490.0,0.00028767,4]
[366710406,1750415623204,-662.4,0.00028767,4]
[366710407,1750415623217,-11431.71,0.00028767,4]
[366710408,1750415623228,-574.02,0.00028767,4]
[366710409,1750415623238,-490.0,0.00028767,4]
[366710410,1750415623249,-2766.75,0.00028767,4]
[366710411,1750415623259,-490.0,0.00028767,4]
[366710412,1750415623269,-1747.3,0.00028767,4]
[366710413,1750415623279,-490.0,0.00028767,4]
[366710414,1750415623289,-521.31,0.00028767,4]
[366710415,1750415623299,-1639.8,0.00028767,4]
[366710416,1750415623309,-641.47,0.00028767,4]
[366710417,1750415623319,-1452.7,0.00028767,4]
[366710418,1750415623330,-490.0,0.00028767,4]
[366710419,1750415623340,-766.28,0.00028767,4]
[366710420,1750415623350,-490.0,0.00028767,4]
[366710421,1750415623361,-1528.81,0.00028767,4]
[366710422,1750415623372,-2442.89,0.00028767,4]
[366710423,1750415623382,-490.0,0.00028767,4]
[366710424,1750415623392,-974.85,0.00028767,4]
[366710425,1750415623402,-525.8,0.00028767,4]
[366710426,1750415623413,-655.26,0.00028767,4]
[366710427,1750415623423,-490.0,0.00028767,4]
[366710428,1750415623433,-6155.02,0.00028767,4]
[366710429,1750415623443,-1546.64,0.00028767,4]
[366710430,1750415623454,-490.0,0.00028767,4]
[366710431,1750415623463,-952.09,0.00028767,4]
[366710432,1750415623474,-2556.54,0.00028767,4]
[366710433,1750415623483,-490.0,0.00028767,4]
[366710434,1750415623492,-490.0,0.00028767,4]
[366710435,1750415623502,-1078.67,0.00028767,4]
[366710436,1750415623511,-1698.38,0.00028767,4]
[366710437,1750415623521,-7770.54,0.00028767,4]
[366710438,1750415623533,-490.0,0.00028767,4]
[366710439,1750415623545,-490.0,0.00028767,4]
[366710440,1750415623555,-458.6701131,0.00028767,4]
[366710441,1750415623564,-490.0,0.00028767,4]
[366710442,1750415623574,-713.18,0.00028767,4]
[366710443,1750415623584,-565.57,0.00028767,4]
[366710444,1750415623593,-1078.51,0.00028767,4]
[366710445,1750415623602,-490.0,0.00028767,4]
[366710446,1750415623612,-490.0,0.00028767,4]
[366710447,1750415623625,-490.0,0.00028767,4]
[366710448,1750415623635,-511.43,0.00028767,4]
[366710449,1750415623644,-2984.21217583,0.00028771,5]
[366710450,1750415623654,-817.55217615,0.00028773,5]
[366710451,1750415623664,-151.0,0.00028774,2]
[366710452,1750415623674,-200.0,0.00028775,5]
[366710453,1750415623684,-336.26703461,0.00028777,4]
[366710454,1750415623694,-490.0,0.00028777,4]
[366710455,1750415623704,-490.0,0.00028777,4]
[366710456,1750415623715,-490.0,0.00028777,4]
[366710457,1750415623725,-264.02507015,0.00028777,4]
[366710458,1750415623735,-490.0,0.00028777,4]
[366710459,1750415623745,-709.67,0.00028777,4]
[366710460,1750415623754,-490.0,0.00028777,4]
[366710461,1750415623764,-490.0,0.00028777,4]
[366710462,1750415623774,-716.73,0.00028777,4]
[366710463,1750415623783,-490.0,0.00028777,4]
[366710464,1750415623793,-879.88,0.00028777,4]
[366710465,1750415623802,-357.449965,0.00028777,4]
[366710466,1750415623812,-208.63912809,0.00028777,4]
[366710467,1750415623822,-490.0,0.00028777,4]
[366710468,1750415623832,-490.0,0.00028777,4]
[366710469,1750415623841,-490.0,0.00028777,4]
[366710470,1750415623851,-490.0,0.00028777,4]
[366710471,1750415623860,-490.0,0.00028777,4]
[366710472,1750415623870,-490.0,0.00028777,4]
[366710473,1750415623879,-490.0,0.00028777,4]
[366710474,1750415623889,-1218.9,0.00028777,4]
[366710475,1750415623899,-901.28,0.00028777,4]
[366710476,1750415623908,-507.19,0.00028777,4]
[366710477,1750415623918,-490.0,0.00028777,4]
[366710478,1750415623928,-584.6,0.00028777,4]
[366710479,1750415623938,-491.41276772,0.00028777,4]
[366710480,1750415623947,-490.0,0.00028777,4]
[366710481,1750415623957,-490.0,0.00028777,4]
[366710482,1750415623968,-490.0,0.00028777,4]
[366710483,1750415623978,-624.83,0.00028777,4]
[366710484,1750415623988,-519.58202609,0.00028777,4]
[366710485,1750415623997,-495.47689108,0.00028777,4]
[366710486,1750415624008,-947.23,0.00028777,4]
[366710487,1750415624017,-497.34,0.00028777,4]
[366710488,1750415624027,-1160.0,0.00028777,4]
[366710489,1750415624037,-682.25,0.00028777,4]
[366710490,1750415624046,-676.69,0.00028777,4]
[366710491,1750415624056,-798.57,0.00028777,4]
[366710492,1750415624065,-490.0,0.00028777,4]
[366710493,1750415624075,-490.0,0.00028777,4]
[366710494,1750415624084,-490.0,0.00028777,4]
[366710495,1750415624094,-490.0,0.00028777,4]
[366710496,1750415624104,-490.0,0.00028777,4]
[366710497,1750415624114,-994.26,0.00028777,4]
[366710498,1750415624124,-490.0,0.00028777,4]
[366710499,1750415624134,-490.0,0.00028777,4]
[366710500,1750415624144,-504.86,0.00028777,4]